bitfinex/quotes_BTCUSD_20241021
["timestamp","ask_amount","ask_price","bid_price","bid_amount"]
[1729503702581,0.006,68272.0,68271.0,0.30708615]
[1729503702801,0.005,68272.0,68271.0,0.30108615]
[1729503703216,0.006,68272.0,68271.0,0.30708615]
[1729503703685,0.007,68272.0,68271.0,0.31608615]
[1729503704098,0.007,68272.0,68271.0,0.38159882]
[1729503704512,0.007,68272.0,68271.0,0.31608615]
[1729503704738,0.007,68272.0,68271.0,0.38166667]
[1729503705574,0.007,68272.0,68271.0,0.31608615]
[1729503706002,0.007,68272.0,68271.0,0.38169353]
[1729503706177,0.007,68272.0,68271.0,0.31608615]
[1729503706615,0.007,68272.0,68271.0,0.38169745]
[1729503707271,0.007,68272.0,68271.0,0.31608615]
[1729503707495,0.007,68272.0,68271.0,0.38171586]
[1729503708324,0.007,68272.0,68271.0,0.31608615]
[1729503708583,0.007,68272.0,68271.0,0.38173603]
[1729503709198,0.007,68272.0,68271.0,0.31608615]
[1729503709401,0.007,68272.0,68271.0,0.40343638]
[1729503709608,0.007,68272.0,68271.0,0.38175862]
[1729503710216,0.007,68272.0,68271.0,0.31608615]
[1729503710626,0.007,68272.0,68271.0,0.23530107]
[1729503711180,0.007,68272.0,68271.0,0.38177607]
[1729503712209,0.007,68272.0,68271.0,0.31608615]
[1729503714304,0.007,68272.0,68271.0,0.40343638]
[1729503714741,0.0118603,68272.0,68271.0,0.10800223]
[1729503714942,0.0188603,68272.0,68271.0,0.08639247]
[1729503715159,0.1653323,68272.0,68271.0,0.020652]
[1729503715579,0.2088603,68272.0,68271.0,0.020652]
[1729503715799,0.4424323,68272.0,68271.0,0.020652]
[1729503716453,0.4414323,68272.0,68271.0,0.011652]
[1729503716664,0.4414323,68272.0,68271.0,0.010652]
[1729503716875,0.4424323,68272.0,68271.0,0.020652]
[1729503717073,0.4424323,68272.0,68271.0,0.011652]
[1729503717280,0.2939603,68272.0,68271.0,0.017652]
[1729503717490,0.2929603,68272.0,68271.0,0.011652]
[1729503717908,0.2929603,68272.0,68271.0,0.017652]
[1729503718319,0.2821,68272.0,68271.0,0.154127]
[1729503718526,0.2919603,68272.0,68271.0,0.22686747]
[1729503718707,0.2929603,68272.0,68271.0,0.22686747]
[1729503718949,0.2929603,68272.0,68271.0,0.161127]
[1729503719153,0.0921,68272.0,68271.0,0.51872267]
[1729503719352,0.005,68272.0,68271.0,0.39477534]
[1729503719564,0.006,68272.0,68271.0,0.30708615]
[1729503719773,0.007,68272.0,68271.0,0.42569764]
[1729503719977,0.007,68272.0,68271.0,0.41669764]
[1729503720182,0.007,68272.0,68271.0,0.30708615]
[1729503720414,0.008,68272.0,68271.0,0.31608615]
[1729503720623,0.008,68272.0,68271.0,0.42570675]
[1729503720828,0.008,68272.0,68271.0,0.31608615]
[1729503723404,0.008,68272.0,68271.0,0.41608615]
[1729503724110,0.0178603,68272.0,68271.0,0.17180854]
[1729503724333,0.0248603,68272.0,68271.0,0.08863104]
[1729503724555,0.2866603,68272.0,68271.0,0.02284939]
[1729503724769,0.2886603,68272.0,68271.0,0.02284939]
[1729503725227,0.2876603,68272.0,68271.0,0.01284939]
[1729503725457,0.2886603,68272.0,68271.0,0.02284939]
[1729503725678,0.2866603,68272.0,68271.0,0.01384939]
[1729503725882,0.2856603,68272.0,68271.0,0.02284939]
[1729503726101,0.2846603,68272.0,68271.0,0.01284939]
[1729503726323,0.2856603,68272.0,68271.0,0.01384939]
[1729503726543,0.2866603,68272.0,68271.0,0.02284939]
[1729503726771,0.2846603,68272.0,68271.0,0.01384939]
[1729503727226,0.2846603,68272.0,68271.0,0.16032439]
[1729503727486,0.005,68272.0,68271.0,0.15032439]
[1729503727742,0.006,68272.0,68271.0,0.30828354]
[1729503727967,0.007,68272.0,68271.0,0.31828354]
[1729503728199,0.012,68272.0,68271.0,0.42791502]
[1729503728462,0.012,68272.0,68271.0,0.41828354]
[1729503728463,0.007,68272.0,68271.0,0.41828354]
[1729503736280,0.007,68272.0,68271.0,0.54980966]
[1729503736491,0.002,68272.0,68271.0,0.41828354]
[1729503736946,0.001,68272.0,68271.0,0.40828354]
[1729503737160,0.005,68276.0,68275.0,0.246466]
[1729503737379,0.005,68276.0,68275.0,0.39542515]
[1729503737622,0.005,68276.0,68275.0,0.52694071]
[1729503738284,0.005,68276.0,68275.0,0.39542515]
[1729503738705,0.005,68276.0,68275.0,0.40442515]
[1729503738978,0.005,68276.0,68275.0,0.41242515]
[1729503740060,0.005,68276.0,68275.0,0.26595915]
[1729503740287,0.005,68276.0,68275.0,0.41242515]
[1729503743225,0.005,68277.0,68276.0,0.146464]
[1729503743450,0.001656,68279.0,68278.0,0.2989397]
[1729503743661,0.001656,68279.0,68278.0,0.45082772]
[1729503743874,0.001656,68279.0,68278.0,0.44789885]
[1729503744983,0.001656,68279.0,68278.0,0.52229885]
[1729503745415,0.001656,68279.0,68278.0,0.53129885]
[1729503745892,0.001656,68279.0,68278.0,0.53929885]
[1729503748718,0.001654,68280.0,68278.0,0.53929885]
[1729503748719,1e-06,68280.0,68279.0,0.2989367]
[1729503748937,1e-06,68280.0,68279.0,0.6664609]
[1729503749161,1e-06,68280.0,68279.0,0.7036601]
[1729503750502,1e-06,68280.0,68279.0,0.85123992]
[1729503750958,1e-06,68280.0,68279.0,0.81797567]
[1729503751175,1e-06,68280.0,68279.0,0.82597567]
[1729503751402,1e-06,68280.0,68279.0,0.66139585]
[1729503751615,1e-06,68280.0,68279.0,0.67039585]
[1729503751826,1e-06,68280.0,68279.0,0.82597567]
[1729503752035,1e-06,68280.0,68279.0,0.82590504]
[1729503752482,1e-06,68280.0,68279.0,0.67839585]
[1729503752924,1e-06,68280.0,68279.0,0.89403237]
[1729503753134,0.21563652,68296.0,68295.0,0.3439627]
[1729503753346,0.21563652,68296.0,68295.0,0.49511809]
[1729503753581,0.00166,68300.0,68299.0,0.2465547]
[1729503753814,0.00166,68300.0,68299.0,0.41851385]
[1729503754960,0.00166,68300.0,68299.0,0.42651385]
[1729503755159,0.00166,68300.0,68299.0,0.43551385]
[1729503758111,0.00166,68300.0,68299.0,0.45050398]
[1729503759603,0.08046,68300.0,68299.0,0.49955902]
[1729503759761,0.08546,68300.0,68299.0,0.31237415]
[1729503760572,0.08546,68300.0,68299.0,0.30337415]
[1729503760801,0.08546,68300.0,68299.0,0.29537415]
[1729503761000,0.08546,68300.0,68299.0,0.40437415]
[1729503761178,0.08546,68300.0,68299.0,0.41237415]
[1729503761416,0.08546,68300.0,68299.0,0.40337415]
[1729503761543,0.08546,68300.0,68299.0,0.41137415]
[1729503761748,0.08546,68300.0,68299.0,0.42037415]
[1729503765503,0.0953203,68300.0,68299.0,0.42037415]
[1729503765710,0.2800203,68300.0,68299.0,0.32037415]
[1729503766550,0.2800203,68300.0,68299.0,0.31137415]
[1729503766763,0.27016,68300.0,68299.0,0.52001067]
[1729503766982,0.27016,68300.0,68299.0,0.30437415]
[1729503767201,0.27016,68300.0,68299.0,0.31237415]
[1729503767465,0.27016,68300.0,68299.0,0.29537415]
[1729503767678,0.27016,68300.0,68299.0,0.41237415]
[1729503768103,0.27016,68300.0,68299.0,0.40437415]
[1729503768306,0.27016,68300.0,68299.0,0.41237415]
[1729503768939,0.27016,68300.0,68299.0,0.40337415]
[1729503769150,0.27016,68300.0,68299.0,0.41237415]
[1729503770053,0.27016,68300.0,68299.0,0.44171415]
[1729503770259,0.27016,68300.0,68299.0,0.41237415]
[1729503775636,0.27016,68300.0,68299.0,0.49966943]
[1729503776638,0.27016,68300.0,68299.0,0.41237415]
[1729503776865,0.27016,68300.0,68299.0,0.49976531]
[1729503778005,0.27016,68300.0,68299.0,0.49978495]
[1729503778527,0.27016,68300.0,68299.0,0.41237415]
[1729503778770,0.00166,68300.0,68299.0,0.68045037]
[1729503779011,1e-06,68300.0,68299.0,0.46481385]
[1729503779779,1e-06,68300.0,68299.0,0.45581385]
[1729503780041,1e-06,68300.0,68299.0,0.46481385]
[1729503780508,1e-06,68300.0,68299.0,0.44781385]
[1729503780747,1e-06,68300.0,68299.0,0.46481385]
[1729503780964,1e-06,68300.0,68299.0,0.45681385]
[1729503781396,1e-06,68300.0,68299.0,0.46481385]
[1729503786649,1e-06,68300.0,68299.0,0.46476664]
[1729503787286,1e-06,68300.0,68299.0,0.46470169]
[1729503792123,1e-06,68300.0,68299.0,0.53910169]
[1729503792984,1e-06,68300.0,68299.0,0.53992869]
[1729503795949,0.00166,68310.0,68309.0,0.2988327]
[1729503795950,1e-06,68310.0,68309.0,0.2988327]
[1729503796095,1e-06,68310.0,68309.0,0.44779185]
[1729503797569,1e-06,68310.0,68309.0,0.45579185]
[1729503797782,1e-06,68310.0,68309.0,0.46479185]
[1729503798443,1e-06,68310.0,68309.0,0.47973672]
[1729503798667,1e-06,68310.0,68309.0,0.47073672]
[1729503799088,1e-06,68310.0,68309.0,0.47173672]
[1729503799535,1e-06,68310.0,68309.0,0.47973672]
[1729503800662,1e-06,68310.0,68309.0,0.77851208]
[1729503800882,1e-06,68317.0,68316.0,0.2988177]
[1729503801101,1e-06,68317.0,68316.0,0.45070385]
[1729503801312,1e-06,68317.0,68316.0,0.44777685]
[1729503801535,1e-06,68317.0,68316.0,0.44773685]
[1729503803290,1e-06,68317.0,68316.0,0.45573685]
[1729503803742,1e-06,68317.0,68316.0,0.50910768]
[1729503804212,1e-06,68317.0,68316.0,0.50010768]
[1729503804416,1e-06,68317.0,68316.0,0.50910768]
[1729503805258,1e-06,68317.0,68316.0,0.49491646]
[1729503806181,4.1e-05,68317.0,68316.0,0.49491646]
[1729503806416,4.1e-05,68317.0,68316.0,0.68836309]
[1729503806682,4.1e-05,68317.0,68316.0,0.68836336]
[1729503806893,4.1e-05,68317.0,68316.0,0.45054563]
[1729503807111,4.1e-05,68317.0,68316.0,0.41233715]
[1729503807345,0.270241,68317.0,68316.0,0.31233715]
[1729503807560,0.270241,68317.0,68316.0,0.42153905]
[1729503807790,0.270241,68317.0,68316.0,0.39970076]
[1729503807999,0.270241,68317.0,68316.0,0.31233715]
[1729503808241,0.270241,68317.0,68316.0,0.39970074]
[1729503808447,0.270241,68317.0,68316.0,0.30333715]
[1729503808633,0.270241,68317.0,68316.0,0.3907076]
[1729503808850,0.270241,68317.0,68316.0,0.4907076]
[1729503809067,0.270241,68317.0,68316.0,0.5137076]
[1729503809251,0.270241,68317.0,68316.0,0.5057076]
[1729503809382,0.270241,68317.0,68316.0,0.42633715]
[1729503810008,0.270241,68317.0,68316.0,0.52271627]
[1729503810828,0.270241,68317.0,68316.0,0.43533715]
[1729503811271,0.270241,68317.0,68316.0,0.52271627]
[1729503811480,0.270241,68317.0,68316.0,0.43533715]
[1729503811699,0.270241,68317.0,68316.0,0.28895915]
[1729503811902,0.270241,68317.0,68316.0,0.37633827]
[1729503812117,0.270241,68317.0,68316.0,0.50088673]
[1729503812533,0.270241,68317.0,68316.0,0.43533715]
[1729503812736,0.270241,68317.0,68316.0,0.28895915]
[1729503813299,0.270241,68317.0,68316.0,0.43533715]
[1729503813863,0.270241,68317.0,68316.0,0.52271627]
[1729503814089,0.270241,68317.0,68316.0,0.43533715]
[1729503814306,0.270241,68317.0,68316.0,0.37633827]
[1729503814572,0.275241,68317.0,68316.0,0.25333827]
[1729503814783,0.2851413,68317.0,68316.0,0.16595915]
[1729503814996,0.2871413,68317.0,68316.0,0.16595915]
[1729503815217,0.2871413,68317.0,68316.0,0.017]
[1729503815459,0.2871413,68317.0,68305.0,0.00219626]
[1729503815460,0.005,68307.0,68305.0,0.00219626]
[1729503815680,0.2722,68306.0,68305.0,0.00219626]
[1729503816140,0.2871003,68306.0,68305.0,0.15115541]
[1729503816347,0.2871003,68306.0,68293.0,0.2556289]
[1729503816348,0.2669,68298.0,68293.0,0.06558227]
[1729503816556,0.2669,68298.0,68292.0,0.30759607]
[1729503816784,0.2669,68298.0,68295.0,0.14895915]
[1729503819408,0.2679,68298.0,68295.0,0.15695915]
[1729503819602,0.2679,68298.0,68296.0,0.146421]
[1729503819810,0.2689,68298.0,68297.0,0.29537815]
[1729503820484,0.27436283,68298.0,68297.0,0.14895915]
[1729503820688,0.27336283,68298.0,68297.0,0.14895915]
[1729503821181,0.27436283,68298.0,68297.0,0.15595915]
[1729503821390,0.27536283,68298.0,68297.0,0.15595915]
[1729503822522,0.27436283,68298.0,68297.0,0.15595915]
[1729503822940,0.28536283,68298.0,68297.0,0.16395915]
[1729503823487,0.28436283,68298.0,68297.0,0.15595915]
[1729503823699,0.28340283,68298.0,68297.0,0.14895915]
[1729503823930,0.28440283,68298.0,68297.0,0.15695915]
[1729503824100,0.28540283,68298.0,68297.0,0.16495915]
[1729503824294,0.28440283,68298.0,68297.0,0.15695915]
[1729503824511,0.005,68287.0,68281.0,0.14864904]
[1729503824706,0.0772,68286.0,68282.0,0.29540915]
[1729503824936,0.0772,68286.0,68282.0,0.14895915]
[1729503825339,0.0772,68286.0,68283.0,0.146449]
[1729503825539,0.0772,68286.0,68284.0,0.14895915]
[1729503826093,0.0772,68286.0,68284.0,0.29540515]
[1729503826324,0.0772,68286.0,68285.0,0.146445]
[1729503826534,0.0782,68286.0,68285.0,0.29540415]
[1729503826740,0.0772,68286.0,68285.0,0.29540415]
[1729503827141,0.07802381,68286.0,68285.0,0.14895915]
[1729503827412,0.08369714,68286.0,68285.0,0.14895915]
[1729503827619,0.08569714,68286.0,68285.0,0.15695915]
[1729503828813,0.08469714,68286.0,68285.0,0.30340415]
[1729503829025,0.08569714,68286.0,68285.0,0.31140415]
[1729503829757,0.10059744,68286.0,68285.0,0.016]
[1729503829953,0.28869744,68286.0,68285.0,0.016]
[1729503830890,0.28769744,68286.0,68285.0,0.008]
[1729503831314,0.28869744,68286.0,68285.0,0.016]
[1729503831514,0.28869744,68286.0,68285.0,0.008]
[1729503832209,0.28969744,68286.0,68285.0,0.017]
[1729503832635,0.28669744,68286.0,68285.0,0.008]
[1729503833054,0.28769744,68286.0,68285.0,0.017]
[1729503833714,0.28969744,68286.0,68285.0,0.017]
[1729503834126,0.28769744,68286.0,68285.0,0.017]
[1729503835613,0.28969744,68286.0,68285.0,0.017]
[1729503835831,0.28769744,68286.0,68285.0,0.017]
[1729503836653,0.28969744,68286.0,68285.0,0.017]
[1729503838072,0.28769744,68286.0,68285.0,0.017]
[1729503838272,0.28773744,68286.0,68285.0,0.017]
[1729503839463,0.28973744,68286.0,68285.0,0.017]
[1729503840133,0.31265884,68286.0,68285.0,0.017]
[1729503841222,0.31431284,68286.0,68285.0,0.017]
[1729503843414,0.31231284,68286.0,68285.0,0.017]
[1729503843632,0.28939144,68286.0,68285.0,0.017]
[1729503844273,0.29139144,68286.0,68285.0,0.017]
[1729503849954,0.29139144,68286.0,68285.0,1.217]
[1729503850371,0.28471811,68286.0,68285.0,1.217]
[1729503853388,0.28471811,68286.0,68285.0,1.217827]
[1729503855366,0.28471811,68286.0,68285.0,1.364272]
[1729503855771,0.28471811,68286.0,68285.0,1.217827]
[1729503856208,0.28471811,68286.0,68285.0,1.364272]
[1729503856650,0.28271811,68286.0,68285.0,1.364272]
[1729503857633,0.28471811,68286.0,68285.0,1.364272]
[1729503858267,0.28271811,68286.0,68285.0,1.364272]
[1729503859794,0.28471811,68286.0,68285.0,1.364272]
[1729503863212,0.28271811,68286.0,68285.0,1.364272]
[1729503863807,0.28271811,68286.0,68285.0,1.217827]
[1729503863980,0.28271811,68286.0,68285.0,1.364272]
[1729503864198,0.28471811,68286.0,68285.0,1.364272]
[1729503866939,0.28471811,68286.0,68285.0,1.217827]
[1729503867761,0.28471811,68286.0,68285.0,1.364272]
[1729503867971,0.28471811,68286.0,68285.0,1.217827]
[1729503869231,0.28471811,68286.0,68285.0,1.364272]
[1729503870471,0.28471811,68286.0,68285.0,1.42982865]
[1729503871035,0.28471811,68286.0,68285.0,1.364272]
[1729503871234,0.28471811,68286.0,68285.0,1.42982865]
[1729503874206,0.28471811,68286.0,68285.0,1.364272]
[1729503874462,0.28471811,68286.0,68285.0,1.217827]
[1729503874673,0.28471811,68286.0,68285.0,1.28374646]
[1729503874885,0.28471811,68286.0,68285.0,1.43019146]
[1729503875337,0.28471811,68286.0,68285.0,1.364272]
[1729503875549,0.28971811,68286.0,68285.0,1.28376189]
[1729503875777,0.28971811,68286.0,68285.0,1.38376189]
[1729503876225,0.28571811,68286.0,68285.0,1.38376189]
[1729503876447,0.29254143,68286.0,68285.0,1.38376376]
[1729503876868,0.28571811,68286.0,68285.0,1.38376376]
[1729503877017,0.29254143,68286.0,68285.0,1.38376376]
[1729503878107,0.29254143,68286.0,68285.0,1.317827]
[1729503878316,0.29254143,68286.0,68285.0,1.38376376]
[1729503878941,0.28554143,68286.0,68285.0,1.38376376]
[1729503879163,0.27871811,68286.0,68285.0,1.464272]
[1729503879829,0.28071811,68286.0,68285.0,1.464272]
[1729503881138,0.27871811,68286.0,68285.0,1.464272]
[1729503881876,0.28071811,68286.0,68285.0,1.464272]
[1729503882475,0.28071811,68286.0,68285.0,1.317827]
[1729503885789,0.27871811,68286.0,68285.0,1.464272]
[1729503886045,0.27871811,68286.0,68285.0,1.317827]
[1729503886274,0.27871811,68286.0,68285.0,1.53021105]
[1729503886520,0.28071811,68286.0,68285.0,1.53021105]
[1729503886997,0.27871811,68286.0,68285.0,1.53021105]
[1729503888150,0.28071811,68286.0,68285.0,1.53021105]
[1729503889024,0.28071811,68286.0,68285.0,1.464272]
[1729503889233,0.28071811,68286.0,68285.0,1.317827]
[1729503890073,0.27871811,68286.0,68285.0,1.464272]
[1729503890902,0.27871811,68286.0,68285.0,1.53021105]
[1729503891134,0.27871811,68286.0,68285.0,1.38376605]
[1729503891325,0.27871811,68286.0,68285.0,1.53021105]
[1729503891535,0.27871811,68286.0,68285.0,1.53021339]
[1729503892357,0.27871811,68286.0,68285.0,1.464272]
[1729503892776,0.28071811,68286.0,68285.0,1.464272]
[1729503892978,0.27871811,68286.0,68285.0,1.55219385]
[1729503893225,0.27871811,68286.0,68285.0,1.464272]
[1729503893643,0.27871811,68286.0,68285.0,1.57417431]
[1729503893861,0.27871811,68286.0,68285.0,1.55218433]
[1729503895249,0.0195943,68286.0,68285.0,1.70114348]
[1729503895449,0.004694,68286.0,68285.0,1.61323115]
[1729503895807,0.004694,68286.0,68285.0,1.76811393]
[1729503895926,0.004694,68286.0,68285.0,1.61323115]
[1729503896151,0.004694,68286.0,68285.0,1.74506952]
[1729503896581,0.004694,68286.0,68285.0,1.61323115]
[1729503896781,0.003694,68286.0,68285.0,1.60423115]
[1729503897655,0.003694,68286.0,68285.0,1.61223115]
[1729503898229,0.001694,68286.0,68285.0,1.60423115]
[1729503898652,0.001694,68286.0,68285.0,1.61123115]
[1729503898860,0.001694,68286.0,68285.0,1.60423115]
[1729503899208,0.001694,68286.0,68285.0,1.60323115]
[1729503899437,0.001694,68286.0,68285.0,1.61123115]
[1729503900262,0.003694,68286.0,68285.0,1.61123115]
[1729503900740,0.001694,68286.0,68285.0,1.61123115]
[1729503901824,0.1914943,68286.0,68285.0,1.61123115]
[1729503901994,0.2034943,68286.0,68285.0,1.315827]
[1729503902161,0.28582432,68286.0,68285.0,1.315827]
[1729503902374,0.29082432,68286.0,68285.0,1.315827]
[1729503902994,0.29082432,68286.0,68285.0,1.300827]
[1729503903528,0.29082432,68286.0,68285.0,1.315827]
[1729503903761,0.28582432,68286.0,68285.0,1.308827]
[1729503903956,0.2769943,68286.0,68285.0,1.447272]
[1729503904998,0.2799943,68286.0,68285.0,1.307827]
[1729503905197,0.2868493,68286.0,68285.0,1.315827]
[1729503906831,0.2799943,68286.0,68285.0,1.315827]
[1729503908173,0.2868493,68286.0,68285.0,1.315827]
[1729503909021,0.2918493,68286.0,68285.0,1.315827]
[1729503911550,0.4382913,68286.0,68285.0,1.315827]
[1729503912291,0.4482913,68286.0,68285.0,1.315827]
[1729503912517,0.46199372,68286.0,68285.0,1.315827]
[1729503915601,0.56199372,68286.0,68285.0,1.27374721]
[1729503915810,0.71095287,68286.0,68285.0,0.99322178]
[1729503916026,0.71095287,68286.0,68285.0,0.90490531]
[1729503916288,0.71095287,68286.0,68285.0,0.89690531]
[1729503916753,0.71095287,68286.0,68285.0,0.88990531]
[1729503916754,0.70995287,68286.0,68285.0,0.88990531]
[1729503917011,0.70995287,68286.0,68285.0,0.84732194]
[1729503917274,0.70995287,68286.0,68285.0,0.71063197]
[1729503917939,0.70995287,68286.0,68285.0,0.71863197]
[1729503918152,0.70995287,68286.0,68285.0,0.69364881]
[1729503918370,0.71095287,68286.0,68285.0,0.66555314]
[1729503918605,0.70995287,68286.0,68285.0,0.64813824]
[1729503918870,0.71195287,68286.0,68285.0,0.64813824]
[1729503919080,0.71695287,68286.0,68285.0,0.64813824]
[1729503919351,0.71495287,68286.0,68285.0,0.64813824]
[1729503919614,0.71495287,68286.0,68285.0,0.22703311]
[1729503919615,0.71695287,68286.0,68285.0,0.22703311]
[1729503919853,0.72095287,68286.0,68285.0,0.22703311]
[1729503920068,2.22095287,68286.0,68285.0,0.22703311]
[1729503920322,0.72095287,68286.0,68285.0,0.22703311]
[1729503920758,0.71695287,68286.0,68285.0,0.22703311]
[1729503920969,0.71195287,68286.0,68285.0,0.22703311]
[1729503921200,0.71195287,68286.0,68285.0,0.22803311]
[1729503921201,0.71495287,68286.0,68285.0,0.22803311]
[1729503921431,0.72195287,68286.0,68285.0,0.22803311]
[1729503924974,0.70825045,68286.0,68285.0,0.22803311]
[1729503928486,0.402949,68286.0,68285.0,0.22803311]
[1729503928725,0.032549,68286.0,68285.0,0.22803311]
[1729503928967,0.0424493,68286.0,68285.0,0.37447811]
[1729503929175,0.0524493,68286.0,68285.0,0.37447811]
[1729503929501,0.0424493,68286.0,68285.0,0.37447811]
[1729503929751,0.0524493,68286.0,68285.0,0.37447811]
[1729503930241,0.0424493,68286.0,68285.0,0.37447811]
[1729503930499,0.0474493,68286.0,68285.0,0.22803311]
[1729503930739,0.0474493,68286.0,68285.0,0.22703311]
[1729503930740,0.0404493,68286.0,68285.0,0.22703311]
[1729503930970,0.0304493,68286.0,68285.0,0.37847811]
[1729503931190,0.0304493,68286.0,68285.0,0.23203311]
[1729503931445,0.0404493,68286.0,68285.0,0.23203311]
[1729503931701,0.0404493,68286.0,68285.0,0.23603311]
[1729503932155,0.1868913,68286.0,68285.0,0.23603311]
[1729503932629,0.4515913,68286.0,68285.0,0.23603311]
[1729503933740,0.4515913,68286.0,68285.0,0.23103311]
[1729503934002,0.4515913,68286.0,68285.0,0.23203311]
[1729503934243,0.4515913,68286.0,68285.0,0.23603311]
[1729503934477,0.4515913,68286.0,68285.0,0.22703311]
[1729503934692,0.4515913,68286.0,68285.0,0.23103311]
[1729503934904,0.4515913,68286.0,68285.0,0.23603311]
[1729503935542,0.4515913,68286.0,68285.0,0.22703311]
[1729503935991,0.4515913,68286.0,68285.0,0.22903311]
[1729503936412,0.60055045,68286.0,68285.0,0.22903311]
[1729503936867,0.60055045,68286.0,68285.0,0.23303311]
[1729503937095,0.61423305,68286.0,68285.0,0.23103311]
[1729503937311,0.61423305,68286.0,68285.0,0.22703311]
[1729503937312,0.71423305,68286.0,68285.0,0.22703311]
[1729503937556,0.71423305,68286.0,68285.0,0.22803311]
[1729503937809,0.71623305,68286.0,68285.0,0.20052897]
[1729503938032,0.73923305,68286.0,68285.0,0.05235582]
[1729503938251,0.74223305,68286.0,68285.0,0.05035582]
[1729503938476,0.74023305,68286.0,68285.0,0.05035582]
[1729503938696,0.74023305,68286.0,68285.0,0.00177032]
[1729503938913,0.74423305,68286.0,68285.0,0.00177032]
[1729503939596,0.0339003,68285.0,68284.0,0.000827]
[1729503939825,0.73368705,68285.0,68284.0,0.000827]
[1729503940067,0.78420478,68285.0,68284.0,0.000827]
[1729503940288,0.78419419,68285.0,68284.0,0.000827]
[1729503940502,0.740456,68285.0,68284.0,0.000827]
[1729503940987,2.399656,68285.0,68284.0,0.002827]
[1729503941204,2.55561515,68285.0,68284.0,0.002827]
[1729503941431,2.45039315,68285.0,68284.0,0.002827]
[1729503941661,2.406656,68285.0,68284.0,0.002827]
[1729503942098,2.45039315,68285.0,68284.0,0.002827]
[1729503942310,2.406656,68285.0,68284.0,0.002827]
[1729503942531,2.45039315,68285.0,68284.0,0.002827]
[1729503943171,2.53353463,68285.0,68284.0,0.002827]
[1729503944012,2.57729183,68285.0,68284.0,0.002827]
[1729503944457,2.406656,68285.0,68284.0,0.002827]
[1729503945096,2.29620931,68285.0,68284.0,0.002827]
[1729503945535,2.29420931,68285.0,68284.0,0.002827]
[1729503945747,2.29620931,68285.0,68284.0,0.002827]
[1729503945948,2.29420931,68285.0,68284.0,0.002827]
[1729503946159,2.2137734,68285.0,68284.0,0.002827]
[1729503947024,2.36273255,68285.0,68284.0,0.002827]
[1729503947235,0.88773255,68285.0,68284.0,0.002827]
[1729503947448,0.93148276,68285.0,68284.0,0.002827]
[1729503947665,2.38773255,68285.0,68284.0,0.002827]
[1729503948588,2.43330723,68285.0,68284.0,0.002827]
[1729503949233,0.5520533,68281.0,68280.0,0.000827]
[1729503949479,0.70101245,68281.0,68280.0,0.000827]
[1729503949732,0.70770536,68281.0,68280.0,0.000827]
[1729503950185,0.75145067,68281.0,68280.0,0.000827]
[1729503950824,0.76445067,68281.0,68280.0,0.002827]
[1729503951034,0.87490536,68281.0,68280.0,0.002827]
[1729503951251,0.87290536,68281.0,68280.0,0.002827]
[1729503951680,1.00359405,68281.0,68280.0,0.002827]
[1729503951903,0.93852227,68281.0,68280.0,0.002827]
[1729503952136,0.97718755,68281.0,68280.0,0.002827]
[1729503952357,0.91157064,68281.0,68280.0,0.002827]
[1729503954110,0.97718439,68281.0,68280.0,0.002827]
[1729503954319,0.93910687,68281.0,68280.0,0.002827]
[1729503954757,0.98284205,68281.0,68280.0,0.002827]
[1729503954963,0.95330266,68281.0,68280.0,0.002827]
[1729503955176,0.90956748,68281.0,68280.0,0.002827]
[1729503955385,0.91156748,68281.0,68280.0,0.002827]
[1729503955595,0.95529924,68281.0,68280.0,0.002827]
[1729503956050,0.90166718,68281.0,68280.0,0.002827]
[1729503956259,0.91156748,68281.0,68280.0,0.002827]
[1729503956476,0.90949805,68281.0,68280.0,0.002827]
[1729503957790,0.90949677,68281.0,68280.0,0.002827]
[1729503958422,0.32473732,68281.0,68280.0,0.002827]
[1729503958632,0.22097678,68281.0,68280.0,0.002827]
[1729503959049,0.21097678,68281.0,68280.0,0.002827]
[1729503959264,0.22097678,68281.0,68280.0,0.002827]
[1729503959689,0.31428387,68281.0,68280.0,0.002827]
[1729503962211,0.32795966,68281.0,68280.0,0.002827]
[1729503962637,0.65841881,68281.0,68280.0,0.002827]
[1729503962846,0.73911881,68281.0,68280.0,0.002827]
[1729503963962,1.04139969,68281.0,68280.0,0.002827]
[1729503965294,1.04339969,68281.0,68280.0,0.002827]
[1729503965769,1.15460289,68281.0,68280.0,0.002827]
[1729503965986,1.17760289,68281.0,68280.0,0.002827]
[1729503966210,1.10597568,68281.0,68280.0,0.001827]
[1729503966430,1.17159176,68281.0,68280.0,0.001827]
[1729503966644,1.17959176,68281.0,68280.0,0.002827]
[1729503966855,2.67259176,68281.0,68280.0,0.000173]
[1729503967068,0.7274553,68280.0,68279.0,0.000827]
[1729503967333,0.92199044,68280.0,68279.0,0.000827]
[1729503967599,1.12839488,68280.0,68279.0,0.000827]
[1729503967822,1.12639564,68280.0,68279.0,0.000827]
[1729503968035,0.97743649,68280.0,68279.0,0.000827]
[1729503968925,0.99143649,68280.0,68279.0,0.001827]
[1729503969138,1.00543649,68280.0,68279.0,0.002827]
[1729503969367,0.96168624,68280.0,68279.0,0.002827]
[1729503969611,1.00543492,68280.0,68279.0,0.002827]
[1729503969836,0.96168624,68280.0,68279.0,0.002827]
[1729503970137,1.00743492,68280.0,68279.0,0.002827]
[1729503970323,2.65639407,68280.0,68279.0,0.002827]
[1729503971096,2.65639875,68280.0,68279.0,0.002827]
[1729503971547,2.61265007,68280.0,68279.0,0.002827]
[1729503971763,1.11265007,68280.0,68279.0,0.002827]
[1729503971972,1.15639234,68280.0,68279.0,0.002827]
[1729503972183,2.50743319,68280.0,68279.0,0.002827]
[1729503973245,2.46369092,68280.0,68279.0,0.002827]
[1729503973665,2.50743319,68280.0,68279.0,0.002827]
[1729503974119,2.46369092,68280.0,68279.0,0.002827]
[1729503974326,2.65639512,68280.0,68279.0,0.002827]
[1729503974765,2.65639713,68280.0,68279.0,0.002827]
[1729503974984,2.67133929,68280.0,68279.0,0.002827]
[1729503975230,2.67133929,68280.0,68271.0,0.001652]
[1729503975231,0.5508723,68272.0,68271.0,0.001652]
[1729503975443,0.75910792,68272.0,68271.0,0.001652]
[1729503975876,0.91330792,68272.0,68271.0,0.001652]
[1729503976089,0.86773193,68272.0,68271.0,0.001652]
[1729503976554,0.87373193,68272.0,68271.0,0.002652]
[1729503976984,0.88173193,68272.0,68271.0,0.003652]